fUSD/lending_fUSD_20250522
["ID","MTS","AMOUNT","RATE_DAILY","PERIOD"]
[361897739,1747876251490,-420.0,0.00032876,14]
[361897741,1747876251499,-420.0,0.00032876,14]
[361897743,1747876251509,-420.0,0.00032876,14]
[361897745,1747876251521,-1342.14,0.00032876,14]
[361897747,1747876251530,-880.6,0.00032876,14]
[361897749,1747876251540,-420.0,0.00032876,14]
[361897751,1747876251550,-443.22,0.00032876,14]
[361897753,1747876251560,-420.0,0.00032876,14]
[361897755,1747876251569,-426.69,0.00032876,14]
[361897757,1747876251578,-207.673533,0.00032876,14]
[361897759,1747876251588,-420.0,0.00032876,14]
[361897761,1747876251597,-511.66885969,0.00032876,14]
[361897763,1747876251607,-1406.02,0.00032876,14]
[361897765,1747876251616,-566.4074961,0.00032876,14]
[361897767,1747876251626,-588.15,0.00032876,14]
[361897769,1747876251636,-835.07,0.00032876,14]
[361897771,1747876251645,-420.0,0.00032876,14]
[361897773,1747876251654,-1665.48,0.00032876,14]
[361897775,1747876251663,-420.0,0.00032876,14]
[361897777,1747876251673,-436.73,0.00032876,14]
[361897779,1747876251682,-420.0,0.00032876,14]
[361897781,1747876251693,-420.0,0.00032876,14]
[361897783,1747876251702,-151.0,0.00032876,7]
[361897785,1747876251711,-851.51,0.00032876,14]
[361897787,1747876251721,-1318.16,0.00032876,14]
[361897789,1747876251730,-420.0,0.00032876,14]
[361897791,1747876251739,-151.0,0.00032876,7]
[361897793,1747876251748,-420.0,0.00032876,14]
[361897795,1747876251757,-1130.78,0.00032876,14]
[361897796,1747876251767,-678.73,0.00032876,14]
[361897797,1747876251776,-663.48,0.00032876,14]
[361897798,1747876251785,-873.74,0.00032876,14]
[361897799,1747876251795,-916.68,0.00032876,14]
[361897800,1747876251806,-1403.71,0.00032876,14]
[361897801,1747876251815,-551.56,0.00032876,14]
[361897802,1747876251824,-420.0,0.00032876,14]
[361897803,1747876251834,-1668.91,0.00032876,14]
[361897804,1747876251843,-420.0,0.00032876,14]
[361897806,1747876251853,-703.07,0.00032876,14]
[361897808,1747876251863,-198.484301,0.00032876,14]
[361897809,1747876251872,-1227.96,0.00032876,14]
[361897811,1747876251881,-438.33,0.00032876,14]
[361897814,1747876251891,-420.0,0.00032876,14]
[361897815,1747876251901,-420.0,0.00032876,14]
[361897817,1747876251910,-856.34,0.00032876,14]
[361897819,1747876251919,-452.17,0.00032876,14]
[361897821,1747876251929,-1463.5,0.00032876,14]
[361897823,1747876251939,-420.0,0.00032876,14]
[361897825,1747876251948,-420.0,0.00032876,14]
[361897827,1747876251958,-420.0,0.00032876,14]
[361897829,1747876251967,-420.0,0.00032876,14]
[361897831,1747876251977,-420.0,0.00032876,14]
[361897833,1747876251986,-420.0,0.00032876,14]
[361897835,1747876251995,-1304.75,0.00032876,14]
[361897837,1747876252005,-1066.25,0.00032876,14]
[361897839,1747876252016,-420.0,0.00032876,14]
[361897841,1747876252026,-420.0,0.00032876,14]
[361897843,1747876252035,-420.0,0.00032876,14]
[361897845,1747876252045,-420.0,0.00032876,14]
[361897847,1747876252055,-421.24,0.00032876,14]
[361897849,1747876252065,-151.0,0.00032876,7]
[361897851,1747876252079,-457.64571207,0.00032876,14]
[361897853,1747876252089,-420.0,0.00032876,14]
[361897855,1747876252098,-1717.54,0.00032876,14]
[361897857,1747876252107,-152.118291,0.00032876,7]
[361897859,1747876252118,-399.47486058,0.00032876,14]
[361897861,1747876252127,-420.0,0.00032876,14]
[361897863,1747876252136,-420.0,0.00032876,14]
[361897864,1747876252147,-420.0,0.00032876,14]
[361897867,1747876252157,-490.95,0.00032876,14]
[361897869,1747876252167,-1503.72,0.00032876,14]
[361897871,1747876252178,-420.0,0.00032876,14]
[361897873,1747876252188,-420.0,0.00032876,14]
[361897875,1747876252198,-420.0,0.00032876,14]
[361897877,1747876252208,-1208.48,0.00032876,14]
[361897879,1747876252218,-420.0,0.00032876,14]
[361897880,1747876252228,-420.0,0.00032876,14]
[361897882,1747876252239,-420.0,0.00032876,14]
[361897885,1747876252250,-420.0,0.00032876,14]
[361897886,1747876252259,-420.0,0.00032876,14]
[361897888,1747876252273,-420.0,0.00032876,14]
[361897890,1747876252282,-420.0,0.00032876,14]
[361897892,1747876252292,-420.0,0.00032876,14]
[361897894,1747876252302,-1515.91,0.00032876,14]
[361897896,1747876252311,-420.0,0.00032876,14]
[361897898,1747876252322,-420.0,0.00032876,14]
[361897900,1747876252332,-420.0,0.00032876,14]
[361897902,1747876252341,-1144.61,0.00032876,14]
[361897904,1747876252351,-420.0,0.00032876,14]
[361897905,1747876252360,-1243.23,0.00032876,14]
[361897907,1747876252370,-1155.4,0.00032876,14]
[361897909,1747876252380,-420.0,0.00032876,14]
[361897911,1747876252389,-420.0,0.00032876,14]
[361897913,1747876252400,-1309.48,0.00032876,14]
[361897915,1747876252411,-481.91,0.00032876,14]
[361897917,1747876252421,-202.656307,0.00032876,14]
[361897919,1747876252431,-420.0,0.00032876,14]
[361897921,1747876252440,-1483.4,0.00032876,14]
[361897923,1747876252450,-420.0,0.00032876,14]
[361897925,1747876252460,-613.38,0.00032876,14]
[361897927,1747876252469,-524.81,0.00032876,14]
[361897929,1747876252479,-334.31835191,0.00032876,14]
[361897931,1747876252488,-151.0,0.00032876,7]
[361897933,1747876252498,-420.0,0.00032876,14]
[361897934,1747876252508,-753.84,0.00032876,14]
[361897936,1747876252522,-420.0,0.00032876,14]
[361897937,1747876252534,-1178.43,0.00032876,14]
[361897939,1747876252544,-420.0,0.00032876,14]
[361897940,1747876252555,-673.52,0.00032876,14]
[361897942,1747876252565,-420.0,0.00032876,14]
[361897943,1747876252574,-151.0,0.00032876,7]
[361897944,1747876252584,-534.77,0.00032876,14]
[361897946,1747876252594,-434.39,0.00032876,14]
[361897947,1747876252604,-151.0,0.00032876,7]
[361897949,1747876252613,-1349.86,0.00032876,14]
[361897950,1747876252623,-693.9,0.00032876,14]
[361897952,1747876252633,-420.0,0.00032876,14]
[361897953,1747876252642,-1401.21,0.00032876,14]
[361897955,1747876252652,-420.0,0.00032876,14]
[361897956,1747876252662,-700.45,0.00032876,14]
[361897958,1747876252672,-420.0,0.00032876,14]
[361897959,1747876252682,-420.0,0.00032876,14]
[361897961,1747876252692,-420.0,0.00032876,14]
[361897963,1747876252702,-668.12,0.00032876,14]
[361897964,1747876252711,-1234.3,0.00032876,14]
[361897966,1747876252720,-912.89,0.00032876,14]
[361897967,1747876252730,-240.99,0.00032876,14]
[361897969,1747876252740,-420.0,0.00032876,14]
[361897970,1747876252749,-420.0,0.00032876,14]
[361897972,1747876252759,-1408.22,0.00032876,14]
[361897973,1747876252769,-997.71,0.00032876,14]
[361897975,1747876252779,-1633.33,0.00032876,14]
[361897976,1747876252789,-420.0,0.00032876,14]
[361897978,1747876252799,-519.45,0.00032876,14]
[361897980,1747876252808,-1733.48,0.00032876,14]
[361897981,1747876252817,-420.0,0.00032876,14]
[361897983,1747876252827,-761.14,0.00032876,14]
[361897984,1747876252836,-420.0,0.00032876,14]
[361897986,1747876252846,-1829.94,0.00032876,14]
[361897987,1747876252855,-420.0,0.00032876,14]
[361897989,1747876252866,-420.0,0.00032876,14]
[361897990,1747876252875,-420.0,0.00032876,14]
[361897992,1747876252885,-814.52,0.00032876,14]
[361897994,1747876252895,-420.0,0.00032876,14]
[361897995,1747876252904,-420.0,0.00032876,14]
[361897997,1747876252914,-420.0,0.00032876,14]
[361897998,1747876252923,-1398.26,0.00032876,14]
[361898000,1747876252934,-1334.68,0.00032876,14]
[361898001,1747876252943,-420.0,0.00032876,14]
[361898003,1747876252952,-1274.12,0.00032876,14]
[361898005,1747876252962,-420.0,0.00032876,14]
[361898006,1747876252972,-420.0,0.00032876,14]
[361898008,1747876252982,-420.0,0.00032876,14]
[361898010,1747876252991,-202.41369996,0.00032876,14]
[361898011,1747876253001,-420.0,0.00032876,14]
[361898013,1747876253011,-420.0,0.00032876,14]
[361898014,1747876253021,-1375.36,0.00032876,14]
[361898016,1747876253030,-885.08,0.00032876,14]
[361898018,1747876253040,-420.0,0.00032876,14]
[361898019,1747876253049,-420.0,0.00032876,14]
[361898021,1747876253059,-1138.37,0.00032876,14]
[361898022,1747876253069,-446.44,0.00032876,14]
[361898024,1747876253081,-466.61,0.00032876,14]
[361898026,1747876253091,-420.0,0.00032876,14]
[361898027,1747876253100,-420.0,0.00032876,14]
[361898029,1747876253109,-547.98,0.00032876,14]
[361898031,1747876253120,-420.0,0.00032876,14]
[361898032,1747876253130,-2165.16,0.00032876,14]
[361898034,1747876253140,-2851.27,0.00032876,14]
[361898035,1747876253151,-524.85,0.00032876,14]
[361898037,1747876253161,-420.0,0.00032876,14]
[361898039,1747876253170,-470.87,0.00032876,14]
[361898040,1747876253179,-1313.94,0.00032876,14]
[361898042,1747876253188,-2352.22,0.00032876,14]
[361898044,1747876253197,-199.07708179,0.00032876,14]
[361898045,1747876253206,-494.18,0.00032876,14]
[361898047,1747876253215,-420.0,0.00032876,14]
[361898048,1747876253225,-749.12,0.00032876,14]
[361898050,1747876253234,-1421.13,0.00032876,14]
[361898052,1747876253244,-151.0,0.00032876,7]
[361898053,1747876253253,-420.0,0.00032876,14]
[361898055,1747876253262,-264.74,0.00032876,14]
[361898056,1747876253273,-420.0,0.00032876,14]
[361898058,1747876253283,-1105.17,0.00032876,14]
[361898060,1747876253293,-420.0,0.00032876,14]
[361898062,1747876253302,-420.0,0.00032876,14]
[361898063,1747876253311,-979.79,0.00032876,14]
[361898064,1747876253321,-1009.68,0.00032876,14]
[361898065,1747876253330,-1567.01,0.00032876,14]
[361898066,1747876253339,-373.0,0.00032876,14]
[361898067,1747876253348,-569.74,0.00032876,14]
[361898068,1747876253357,-420.0,0.00032876,14]
[361898069,1747876253367,-559.05,0.00032876,14]
[361898070,1747876253376,-420.0,0.00032876,14]
[361898071,1747876253386,-977.69,0.00032876,14]
[361898072,1747876253397,-958.41,0.00032876,14]
[361898073,1747876253406,-1205.35,0.00032876,14]
[361898074,1747876253417,-420.0,0.00032876,14]
[361898075,1747876253428,-1374.58,0.00032876,14]
[361898076,1747876253438,-420.0,0.00032876,14]
[361898077,1747876253448,-550.18,0.00032876,14]
[361898078,1747876253459,-420.0,0.00032876,14]
[361898079,1747876253468,-1327.75,0.00032876,14]
[361898080,1747876253478,-420.0,0.00032876,14]
[361898081,1747876253488,-1231.3,0.00032876,14]
[361898082,1747876253498,-151.0,0.00032876,7]
[361898083,1747876253509,-494.77,0.00032876,14]
[361898084,1747876253520,-420.0,0.00032876,14]
[361898085,1747876253530,-420.0,0.00032876,14]
[361898086,1747876253540,-420.0,0.00032876,14]
[361898087,1747876253550,-420.0,0.00032876,14]
[361898088,1747876253560,-560.66,0.00032876,14]
[361898089,1747876253569,-420.0,0.00032876,14]
[361898090,1747876253579,-834.15,0.00032876,14]
[361898091,1747876253588,-420.0,0.00032876,14]
[361898092,1747876253598,-1140.63,0.00032876,14]
[361898093,1747876253608,-420.0,0.00032876,14]
[361898095,1747876253618,-420.0,0.00032876,14]
[361898097,1747876253627,-562.24,0.00032876,14]
[361898099,1747876253637,-659.75,0.00032876,14]
[361898101,1747876253647,-151.0,0.00032876,7]
[361898103,1747876253657,-420.0,0.00032876,14]
[361898104,1747876253666,-420.0,0.00032876,14]
[361898106,1747876253676,-420.0,0.00032876,14]
[361898108,1747876253685,-420.0,0.00032876,14]
[361898110,1747876253695,-466.08,0.00032876,14]
[361898112,1747876253704,-3572.59,0.00032876,14]
[361898114,1747876253714,-1295.07,0.00032876,14]
[361898116,1747876253724,-952.48,0.00032876,14]
[361898118,1747876253734,-708.96,0.00032876,14]
[361898120,1747876253743,-420.0,0.00032876,14]
[361898122,1747876253752,-420.0,0.00032876,14]
[361898124,1747876253761,-1248.3,0.00032876,14]
[361898125,1747876253773,-934.82,0.00032876,14]
[361898126,1747876253782,-435.13,0.00032876,14]
[361898127,1747876253791,-420.0,0.00032876,14]
[361898128,1747876253801,-1478.24,0.00032876,14]
[361898129,1747876253810,-420.0,0.00032876,14]
[361898130,1747876253819,-151.0,0.00032876,7]
[361898131,1747876253828,-420.0,0.00032876,14]
[361898132,1747876253838,-492.77,0.00032876,14]
[361898133,1747876253848,-379.03219086,0.00032876,14]
[361898135,1747876253858,-550.01,0.00032876,14]
[361898136,1747876253868,-420.0,0.00032876,14]
[361898138,1747876253877,-346.22571362,0.00032876,14]
[361898140,1747876253887,-151.0,0.00032876,7]
[361898142,1747876253896,-420.0,0.00032876,14]
[361898144,1747876253906,-420.0,0.00032876,14]
[361898146,1747876253915,-420.0,0.00032876,14]
[361898148,1747876253924,-1621.25,0.00032876,14]
[361898150,1747876253934,-420.0,0.00032876,14]
[361898152,1747876253944,-420.0,0.00032876,14]
[361898154,1747876253953,-544.36,0.00032876,14]
[361898156,1747876253962,-420.0,0.00032876,14]
[361898158,1747876253971,-443.41,0.00032876,14]
[361898160,1747876253981,-483.23,0.00032876,14]
[361898162,1747876253990,-1210.79,0.00032876,14]
[361898164,1747876254000,-591.05,0.00032876,14]
[361898166,1747876254010,-1139.21,0.00032876,14]
[361898168,1747876254020,-420.0,0.00032876,14]
[361898170,1747876254030,-978.78,0.00032876,14]
[361898172,1747876254039,-538.77048822,0.00032876,14]
[361898174,1747876254049,-420.0,0.00032876,14]
[361898176,1747876254058,-706.84,0.00032876,14]
[361898178,1747876254071,-831.49,0.00032876,14]
[361898180,1747876254081,-1328.83,0.00032876,14]
[361898182,1747876254091,-420.0,0.00032876,14]
[361898184,1747876254100,-1106.11,0.00032876,14]
[361898186,1747876254111,-420.0,0.00032876,14]
[361898188,1747876254121,-1288.4,0.00032876,14]
[361898190,1747876254131,-420.0,0.00032876,14]
[361898191,1747876254142,-420.0,0.00032876,14]
[361898194,1747876254153,-616.23,0.00032876,14]
[361898195,1747876254162,-1358.53,0.00032876,14]
[361898197,1747876254171,-420.0,0.00032876,14]
[361898200,1747876254182,-1007.93,0.00032876,14]
[361898201,1747876254191,-1409.92,0.00032876,14]
[361898203,1747876254201,-420.0,0.00032876,14]
[361898205,1747876254210,-420.0,0.00032876,14]
[361898208,1747876254220,-1161.65,0.00032876,14]
[361898209,1747876254230,-420.0,0.00032876,14]
[361898212,1747876254241,-558.52,0.00032876,14]
[361898214,1747876254251,-764.92,0.00032876,14]
[361898215,1747876254261,-420.0,0.00032876,14]
[361898217,1747876254271,-420.0,0.00032876,14]
[361898219,1747876254281,-420.0,0.00032876,14]
[361898221,1747876254290,-420.0,0.00032876,14]
[361898223,1747876254299,-420.0,0.00032876,14]
[361898225,1747876254309,-1111.44,0.00032876,14]
[361898227,1747876254319,-583.0,0.00032876,14]
[361898229,1747876254329,-2050.44,0.00032876,14]
[361898231,1747876254339,-420.0,0.00032876,2]
[361898233,1747876254348,-420.0,0.00032876,14]
[361898235,1747876254358,-1355.11,0.00032876,14]
[361898237,1747876254367,-420.0,0.00032876,14]
[361898239,1747876254377,-1456.11,0.00032876,14]
[361898241,1747876254387,-489.24,0.00032876,14]
[361898243,1747876254397,-420.0,0.00032876,14]
[361898245,1747876254407,-420.0,0.00032876,14]
[361898247,1747876254416,-658.61,0.00032876,14]
[361898249,1747876254426,-420.0,0.00032876,14]
[361898251,1747876254436,-151.0,0.00032876,7]
[361898254,1747876254446,-1193.48,0.00032876,14]
[361898256,1747876254456,-420.0,0.00032876,14]
[361898258,1747876254466,-624.38,0.00032876,14]
[361898260,1747876254475,-1842.4,0.00032876,14]
[361898261,1747876254484,-573.58,0.00032876,14]
[361898263,1747876254494,-420.0,0.00032876,14]
[361898265,1747876254506,-1087.89,0.00032876,14]
[361898267,1747876254515,-420.0,0.00032876,14]
[361898269,1747876254526,-420.0,0.00032876,14]
[361898271,1747876254535,-420.0,0.00032876,14]
[361898273,1747876254545,-652.06,0.00032876,14]
[361898276,1747876254556,-420.0,0.00032876,14]
[361898278,1747876254566,-478.64,0.00032876,14]
[361898279,1747876254576,-420.0,0.00032876,14]
[361898281,1747876254585,-420.0,0.00032876,14]
[361898283,1747876254595,-477.95,0.00032876,14]
[361898285,1747876254604,-791.89,0.00032876,14]
[361898287,1747876254614,-420.0,0.00032876,14]
[361898289,1747876254623,-1527.3,0.00032876,14]
[361898291,1747876254633,-420.0,0.00032876,14]
[361898293,1747876254642,-420.0,0.00032876,14]
[361898295,1747876254652,-979.05,0.00032876,14]
[361898297,1747876254662,-429.18,0.00032876,14]
[361898299,1747876254672,-529.99,0.00032876,14]
[361898301,1747876254682,-1225.11,0.00032876,14]
[361898303,1747876254692,-338.97917135,0.00032876,14]
[361898305,1747876254702,-785.09,0.00032876,14]
[361898307,1747876254713,-420.0,0.00032876,14]
[361898309,1747876254723,-422.9,0.00032876,14]
[361898311,1747876254733,-420.0,0.00032876,14]
[361898313,1747876254742,-1071.49,0.00032876,14]
[361898315,1747876254752,-717.83,0.00032876,14]
[361898317,1747876254762,-870.82,0.00032876,14]
[361898319,1747876254771,-303.89418704,0.00032876,14]
[361898321,1747876254781,-464.06,0.00032876,14]
[361898323,1747876254790,-841.18,0.00032876,14]
[361898325,1747876254800,-420.0,0.00032876,14]
[361898327,1747876254809,-521.69,0.00032876,14]
[361898329,1747876254819,-420.0,0.00032876,14]
[361898331,1747876254829,-420.0,0.00032876,14]
[361898333,1747876254839,-1700.25,0.00032876,14]
[361898335,1747876254848,-1221.8,0.00032876,14]
[361898337,1747876254858,-1264.42,0.00032876,14]
[361898339,1747876254869,-528.32,0.00032876,14]
[361898341,1747876254878,-420.0,0.00032876,14]
[361898343,1747876254888,-420.0,0.00032876,14]
[361898345,1747876254898,-420.0,0.00032876,14]
[361898347,1747876254908,-698.28,0.00032876,14]
[361898349,1747876254918,-420.0,0.00032876,14]
[361898351,1747876254927,-430.79,0.00032876,14]
[361898353,1747876254937,-420.0,0.00032876,14]
[361898355,1747876254947,-420.0,0.00032876,14]
[361898357,1747876254956,-420.0,0.00032876,14]
[361898359,1747876254966,-844.64,0.00032876,14]
[361898361,1747876254976,-1155.05,0.00032876,14]
[361898363,1747876254986,-420.0,0.00032876,14]
[361898365,1747876254996,-420.0,0.00032876,14]
[361898367,1747876255005,-420.0,0.00032876,14]
[361898369,1747876255015,-463.1,0.00032876,14]
[361898371,1747876255028,-420.0,0.00032876,14]
[361898373,1747876255039,-420.0,0.00032876,14]
[361898375,1747876255047,-420.0,0.00032876,14]
[361898377,1747876255057,-420.0,0.00032876,14]
[361898378,1747876255067,-479.84,0.00032876,14]
[361898379,1747876255080,-420.0,0.00032876,14]
[361898380,1747876255090,-420.0,0.00032876,14]
[361898381,1747876255099,-867.55,0.00032876,14]
[361898382,1747876255109,-420.0,0.00032876,14]
[361898383,1747876255118,-893.53,0.00032876,14]
[361898384,1747876255128,-420.0,0.00032876,14]
[361898385,1747876255272,-420.0,0.00032876,14]
[361898386,1747876255297,-423.52,0.00032876,14]
[361898387,1747876255307,-661.08,0.00032876,14]
[361898388,1747876255317,-420.0,0.00032876,14]
[361898389,1747876255327,-420.0,0.00032876,14]
[361898390,1747876255337,-420.0,0.00032876,14]
[361898392,1747876255346,-608.11,0.00032876,14]
[361898393,1747876255356,-420.0,0.00032876,14]
[361898395,1747876255365,-420.0,0.00032876,14]
[361898397,1747876255375,-678.64,0.00032876,14]
[361898399,1747876255385,-420.0,0.00032876,14]
[361898401,1747876255395,-420.0,0.00032876,14]
[361898403,1747876255404,-1833.07,0.00032876,14]
[361898404,1747876255414,-420.0,0.00032876,7]
[361898406,1747876255423,-1222.46,0.00032876,14]
[361898408,1747876255433,-420.0,0.00032876,14]
[361898409,1747876255444,-500.0,0.00032876,120]
[361898410,1747876255454,-420.0,0.00032876,14]
[361898411,1747876255464,-420.0,0.00032876,14]
[361898412,1747876255474,-151.973778,0.00032876,7]
[361898413,1747876255484,-420.0,0.00032876,14]
[361898414,1747876255494,-434.84,0.00032876,14]
[361898415,1747876255504,-1094.84,0.00032876,14]
[361898416,1747876255514,-420.0,0.00032876,14]
[361898417,1747876255528,-151.230817,0.00032876,7]
[361898418,1747876255539,-420.0,0.00032876,14]
[361898419,1747876255549,-420.0,0.00032876,14]
[361898420,1747876255558,-727.85,0.00032876,14]
[361898421,1747876255568,-1048.7,0.00032876,14]
[361898422,1747876255578,-151.0,0.00032876,7]
[361898423,1747876255587,-420.0,0.00032876,14]
[361898424,1747876255597,-420.0,0.00032876,14]
[361898425,1747876255607,-2341.51,0.00032876,14]
[361898426,1747876255617,-420.0,0.00032876,14]
[361898427,1747876255627,-402.0026501,0.00032876,14]
[361898428,1747876255636,-865.45,0.00032876,14]
[361898429,1747876255647,-1114.62,0.00032876,14]
[361898430,1747876255656,-421.71,0.00032876,14]
[361898431,1747876255667,-1367.0,0.00032876,14]
[361898432,1747876255677,-420.0,0.00032876,14]
[361898433,1747876255687,-420.0,0.00032876,14]
[361898434,1747876255696,-420.0,0.00032876,14]
[361898435,1747876255707,-420.0,0.00032876,14]
[361898436,1747876255718,-151.0,0.00032876,7]
[361898437,1747876255727,-657.11,0.00032876,14]
[361898438,1747876255738,-1996.72,0.00032876,14]
[361898439,1747876255747,-420.0,0.00032876,14]
[361898440,1747876255758,-1166.81,0.00032876,14]
[361898441,1747876255769,-699.4,0.00032876,14]
[361898442,1747876255779,-947.24,0.00032876,14]
[361898443,1747876255789,-3567.45,0.00032876,14]
[361898444,1747876255799,-420.0,0.00032876,14]
[361898445,1747876255809,-319.78690105,0.00032876,14]
[361898446,1747876255819,-500.0,0.00032876,14]
[361898447,1747876255829,-420.0,0.00032876,14]
[361898448,1747876255839,-508.28,0.00032876,14]
[361898449,1747876255849,-151.0,0.00032876,7]
[361898450,1747876255859,-2000.0,0.00032876,14]
[361898451,1747876255870,-420.0,0.00032876,14]
[361898452,1747876255881,-425.11,0.00032876,14]
[361898453,1747876255891,-420.0,0.00032876,14]
[361898454,1747876255901,-420.0,0.00032876,14]
[361898455,1747876255910,-1178.46,0.00032876,14]
[361898456,1747876255920,-854.42,0.00032876,14]
[361898457,1747876255931,-517.94648966,0.00032876,14]
[361898458,1747876255941,-711.79,0.00032876,14]
[361898459,1747876255951,-420.0,0.00032876,14]
[361898460,1747876255961,-181.06,0.00032876,14]
[361898461,1747876255971,-947.46,0.00032876,14]
[361898462,1747876255981,-1142.35,0.00032876,14]
[361898463,1747876255991,-151.0,0.00032876,7]
[361898464,1747876256001,-420.0,0.00032876,14]
[361898465,1747876256011,-420.0,0.00032876,14]
[361898466,1747876256021,-833.42,0.00032876,14]
[361898467,1747876256031,-420.0,0.00032876,14]
[361898468,1747876256041,-559.41,0.00032876,14]
[361898469,1747876256052,-430.88,0.00032876,14]
[361898470,1747876256061,-420.0,0.00032876,14]
[361898471,1747876256074,-420.0,0.00032876,14]
[361898472,1747876256083,-151.0,0.00032876,7]
[361898473,1747876256093,-1347.46,0.00032876,14]
[361898474,1747876256103,-1626.75,0.00032876,14]
[361898475,1747876256114,-420.0,0.00032876,14]
[361898476,1747876256124,-420.0,0.00032876,14]
[361898477,1747876256133,-420.0,0.00032876,14]
[361898478,1747876256146,-420.0,0.00032876,14]
[361898479,1747876256155,-420.0,0.00032876,14]
[361898480,1747876256166,-420.0,0.00032876,14]
[361898481,1747876256176,-595.53,0.00032876,14]
[361898482,1747876256186,-151.0,0.00032876,7]
[361898483,1747876256196,-151.0,0.00032876,7]
[361898484,1747876256206,-420.0,0.00032876,14]
[361898485,1747876256216,-1041.13,0.00032876,14]
[361898486,1747876256225,-561.42,0.00032876,14]
[361898487,1747876256235,-420.0,0.00032876,14]
[361898488,1747876256245,-420.0,0.00032876,14]
[361898489,1747876256256,-1617.01,0.00032876,14]
[361898490,1747876256266,-420.0,0.00032876,14]
[361898491,1747876256278,-420.0,0.00032876,14]
[361898492,1747876256288,-420.0,0.00032876,14]
[361898493,1747876256298,-420.0,0.00032876,14]
[361898494,1747876256309,-1847.99,0.00032876,14]
[361898495,1747876256318,-1124.01,0.00032876,14]
[361898496,1747876256328,-172.67382309,0.00032876,14]
[361898497,1747876256338,-420.0,0.00032876,14]
[361898498,1747876256348,-420.0,0.00032876,14]
[361898499,1747876256358,-420.0,0.00032876,14]
[361898500,1747876256368,-1134.0,0.00032876,14]
[361898501,1747876256378,-151.0,0.00032876,7]
[361898502,1747876256387,-1021.89,0.00032876,14]
[361898503,1747876256397,-420.0,0.00032876,14]
[361898504,1747876256407,-333.60906343,0.00032876,14]
[361898505,1747876256417,-1077.33,0.00032876,14]
[361898506,1747876256427,-420.0,0.00032876,14]
[361898507,1747876256437,-420.0,0.00032876,14]
[361898508,1747876256447,-420.0,0.00032876,14]
[361898509,1747876256457,-1195.16,0.00032876,14]
[361898510,1747876256467,-420.0,0.00032876,14]
[361898511,1747876256478,-420.0,0.00032876,14]
[361898512,1747876256488,-955.91,0.00032876,14]
[361898513,1747876256498,-1578.04,0.00032876,14]
[361898514,1747876256508,-1243.79,0.00032876,14]
[361898515,1747876256519,-420.0,0.00032876,14]
[361898516,1747876256532,-576.27,0.00032876,14]
[361898517,1747876256542,-392.0592804,0.00032876,14]
[361898518,1747876256552,-1434.12,0.00032876,14]
[361898519,1747876256565,-218.306864,0.00032876,7]
[361898520,1747876256575,-504.31346218,0.00032876,14]